[Event "Serbian League 2024"]
[Site "Bajina Basta"]
[Date "2024.10.03"]
[Round "7.5"]
[White "Bryakin, Mikhail"]
[Black "Lazic, Miroljub"]
[Result "1-0"]
[ECO "A41"]
[WhiteElo "2438"]
[BlackElo "2314"]
[Annotator "TA"]
[PlyCount "169"]
[EventDate "2024.09.26"]
[EventType "team-tourn"]
[EventCountry "SRB"]
[SourceTitle "playchess.com"]
[Source "ChessBase"]
[SourceQuality "1"]
[TimeControl "40/5400+30:1800+30"]

{[%evp 9,169,59,68,57,89,89,101,67,70,79,72,46,43,48,47,42,43,35,63,57,47,25,41,30,37,45,55,22,31,20,27,-7,24,11,34,0,69,38,37,8,13,20,10,0,0,0,20,-36,-33,-51,16,18,17,18,20,18,13,12,10,11,10,8,13,16,25,17,37,35,51,50,49,42,60,61,281,296,377,317,29969,297,358,79,78,81,79,82,76,73,73,74,90,101,95,65,98,97,121,122,130,122,123,122,158,148,231,231,220,211,231,231,231,231,296,216,216,216,29979,216,403,403,416,408,349,377,2168,1790,1289,1317,528,132,199,199,199,0,199,198,198,198,2117,1370,1121,1064,29940,11860,10402,1161,1091,0,6219,0,29956,892,892,892,1397,1275,1047,473,29985,29986,29986,29987]} 1. d4 {[%emt 0:00:04]} d6 {[%emt 0:00:31]} 2. Nf3 {[%emt 0:00:08]} Bg4 {[%emt 0:01:00]} 3. e4 {[%emt 0:00:11]} Nf6 {[%emt 0:02:18]} 4. h3 {[%emt 0:00:24]} Bxf3 {[%emt 0:04:19]} 5. Qxf3 {[%emt 0:00:16]} c6 {[%emt 0:00:24]} 6. Nc3 {[%emt 0:01:40]} e6 {[%emt 0:00:22][%cal Be7e6,Be6e5][%mdl 32]} 7. d5 {[%emt 0:03:33]} Nbd7 {[%emt 0:14:35]} 8. Bf4 {[%emt 0:02:07] White is better.} Be7 {[%emt 0:12:50]} 9. O-O-O {[%emt 0:01:46]} e5 {[%emt 0:01:36]} 10. Be3 {[%emt 0:02:24]} cxd5 {[%emt 0:07:30]} 11. Nxd5 {[%emt 0:11:24]} Nxd5 {[%emt 0:00:15]} 12. Rxd5 {[%emt 0:00:20]} O-O {[%emt 0:00:34]} 13. Kb1 {[%emt 0:03:01]} Rc8 {[%emt 0:01:37]} 14. c3 {[%emt 0:10:16] White has more active pieces.} (14. Bxa7 $2 b6 15. c3 Ra8 16. Bxb6 Qxb6 $19 (16... Nxb6 $2 17. Rb5 $19)) (14. h4 $5) 14... a6 {[%emt 0:00:28]} 15. Be2 {[%emt 0:04:05]} Qc7 {[%emt 0:14:35]} 16. g4 {[%emt 0:04:18]} b5 {[%emt 0:04:21]} 17. g5 {[%emt 0:10:27]} Nb6 {[%emt 0:01:30]} 18. Bxb6 {[%emt 0:08:20]} Qxb6 {[%emt 0:00:02] Black is weak on the light squares} 19. h4 {[%emt 0:00:11]} Rc5 {[%emt 0:01:56]} 20. Rdd1 {[%emt 0:02:33]} Qc6 {[%emt 0:02:42]} 21. Qg4 {[%emt 0:05:46]} Qc8 {[%emt 0:02:45]} 22. Qg2 {[%emt 0:02:55]} (22. Qxc8 {simplifies} Rcxc8 23. a3 Rc5 24. f3) 22... f5 {[%emt 0:04:28]} (22... Qb8 $11) 23. exf5 {[%emt 0:03:59]} Qxf5+ {[%emt 0:00:06]} 24. Bd3 {[%emt 0:00:05][%cal Be2d3,Bd3c2,Bc2b3][%mdl 32]} Qf3 {[%emt 0:00:53]} 25. Qxf3 {[%emt 0:16:23]} Rxf3 {[%emt 0:00:06]} 26. Rh2 {[%emt 0:00:07]} Rf4 {[%emt 0:02:05]} 27. Bc2 {[%emt 0:01:55]} g6 {[%emt 0:08:19] [#]} 28. f3 {[%emt 0:05:01]} Rxf3 $15 {[%emt 0:01:41]} 29. h5 {[%emt 0:00:06]} Rf4 {[%emt 0:06:17]} ({Better is} 29... Bxg5 $15 30. hxg6 h6) 30. hxg6 $11 {[%emt 0:00:14]} hxg6 {[%emt 0:00:02]} 31. Bb3+ {[%emt 0:01:07]} (31. Bxg6 e4 $15) 31... Kg7 {[%emt 0:01:11][%cal Oe5e4]} 32. Rdh1 $1 {[%emt 0:00:01]} d5 $1 {[%emt 0:00:13]} (32... Bxg5 33. Rh7+ Kf8 34. Rh8+ Kg7 35. R1h7+ Kf6 36. Rf8#) 33. Rh7+ {[%emt 0:00:27]} Kf8 {[%emt 0:00:16][%cal Oe5e4]} 34. R1h6 {[%emt 0:00:42]} Bxg5 {[%emt 0:04:07]} 35. Rxg6 {[%emt 0:00:06]} Bf6 {[%emt 0:00:06]} 36. Rd7 {[%emt 0:00:27][%mdl 1024] White has compensation.} Ke8 {[%emt 0:01:52]} 37. Ra7 {[%emt 0:00:12][%cal Rg6g8]} Rf1+ {[%emt 0:00:29]} 38. Kc2 {[%emt 0:00:04][%cal Rg6g8]} Rf2+ {[%emt 0:00:13]} 39. Kd3 {[%emt 0:01:06]} Kf8 {[%emt 0:00:17] Dodges Rg8+} 40. Ke3 {[%emt 0:00:26] Dodges e4} Rf4 {[%emt 0:01:00]} 41. Rh6 {[%emt 0:32:23][%cal Oh6h7]} d4+ $2 {[%emt 0:20:43]} (41... Re4+ $1 $14 42. Kf3 (42. Kd3 Rf4 $14) 42... Rf4+ 43. Ke2 Re4+ 44. Kd3 Rf4) 42. Ke2 $18 {[%emt 0:00:00]} (42. cxd4 exd4+ 43. Kd3 (43. Kxf4 Bg5+ 44. Ke4 Bxh6 $14) 43... Rcf5 $11 (43... Rf3+ 44. Ke2 $11)) 42... dxc3 {[%emt 0:06:29]} 43. bxc3 {[%emt 0:00:00]} Ke8 $2 {[%emt 0:01:08]} (43... Rxc3 $18 44. Rf7+ (44. Rxa6 Kg7 $11) 44... Ke8) 44. Rxa6 $2 {[%emt 0:00:00]} (44. Rg6 Be7 45. Rg7 (45. Raxa6 Kd8 $11) 45... Re4+ 46. Kd2 Rec4 47. Raxe7+ Kf8 48. Ref7+ Ke8 49. Rh7) 44... Bd8 {[%emt 0:02:15]} 45. Rh8+ $2 {[%emt 0:00:00]} (45. Ra8 $18) 45... Rf8 $16 {[%emt 0:00:57]} 46. Rh7 {[%emt 0:00:50]} Rc7 {[%emt 0:00:49]} 47. Re6+ {[%emt 0:00:21]} Re7 {[%emt 0:00:27]} 48. Rhxe7+ {[%emt 0:00:29]} Bxe7 {[%emt 0:00:01]} 49. Rxe5 {[%emt 0:00:19][%mdl 4096] Endgame. KRB-KRB} Rh8 {[%emt 0:02:20]} 50. Rxb5 {[%emt 0:00:11]} Bf6 {[%emt 0:00:00]} 51. Rc5 {[%emt 0:00:40]} Rh3 {[%emt 0:00:00]} 52. Kd2 {[%emt 0:00:59]} Kd7 {[%emt 0:00:00]} 53. Ba4+ {[%emt 0:00:17]} Kd6 {[%emt 0:00:00]} 54. Rc6+ {[%emt 0:00:04]} Ke7 {[%emt 0:00:00]} 55. Kc2 {[%emt 0:00:17]} Rh8 {[%emt 0:00:22]} 56. Bb5 {[%emt 0:00:35]} Be5 {[%emt 0:01:04]} (56... Rh5 $16) 57. a4 $18 {[%emt 0:00:32]} Ra8 {[%emt 0:00:02]} 58. Kb3 {[%emt 0:00:27]} Ra7 {[%emt 0:00:04]} 59. c4 {[%emt 0:01:02]} Kd8 {[%emt 0:01:39]} 60. Kb4 {[%emt 0:01:00]} Bf4 {[%emt 0:00:36]} 61. Rf6 {[%emt 0:00:44]} Bd2+ {[%emt 0:00:04]} 62. Kc5 {[%emt 0:00:16] White wants to mate with Rd6+.} Be3+ $2 {[%emt 0:00:17]} (62... Kc7 $18 63. Kd5 Kb8 64. Rf8+ Kc7) 63. Kd5 $2 {[%emt 0:00:21]} (63. Kd6 {mates} Bf4+ 64. Rxf4 Rd7+ 65. Kc6 Rd1 66. a5 Ke7 67. a6 Rd8 68. a7) 63... Rg7 $2 {[%emt 0:00:54]} (63... Kc7 {is a better defense.} 64. Rf7+ Kb8) 64. Kd6 {[%emt 0:00:25][%cal Rf6f8]} Kc8 {[%emt 0:00:19]} 65. Bc6 {[%emt 0:01:16]} Rg8 {[%emt 0:01:20] Wards off Rf8+} 66. Bd5 {[%emt 0:00:27]} Rh8 $2 {[%emt 0:00:18]} (66... Rd8+ 67. Kc6 Kb8) 67. Rf7 {[%emt 0:00:27] Threatens to win with a5.} Rh6+ {[%emt 0:00:07]} 68. Be6+ {[%emt 0:00:31]} Kb8 {[%emt 0:00:07]} 69. Kd5 $2 {[%emt 0:00:48]} (69. a5 $18 {and the rest is easy.}) 69... Bb6 {[%emt 0:00:44]} (69... Rh5+ $16 70. Bf5 Ka8) 70. Re7 {[%emt 0:00:11]} Bd8 {[%emt 0:00:16]} 71. Rf7 {[%emt 0:00:24]} Bb6 $1 {[%emt 0:00:11]} 72. Bd7 {[%emt 0:00:49]} Bd8 {[%emt 0:02:28]} 73. c5 {[%emt 0:00:18]} Rh5+ $2 {[%emt 0:00:25]} (73... Rh4 74. Bb5 Ba5) 74. Kc6 {[%emt 0:00:24]} Rh6+ {[%emt 0:00:02]} 75. Kb5 {[%emt 0:00:08] Strongly threatening a5.} Rh5 {[%emt 0:00:20]} 76. Bf5 {[%emt 0:00:25]} Rh2 {[%emt 0:00:22]} 77. Be4 {[%emt 0:00:16]} (77. a5 $142 Ra2 78. Rf8) 77... Rh5 {[%emt 0:00:33]} 78. Bf5 {[%emt 0:01:26]} (78. Bc6 $142 Re5 79. a5) 78... Rh2 {[%emt 0:00:18]} 79. Be4 $2 {[%emt 0:00:24]} (79. a5 $18 {Intending Rf8 and mate.} Ra2 80. Rf8) 79... Rb2+ $2 {[%emt 0:00:21][%mdl 8192] [#]} (79... Rh5 $11) 80. Ka6 {[%emt 0:00:30]} (80. Kc6 $142 Bh4 81. a5 Re2 82. Rb7+ Kc8 83. Bf5+ Kd8 84. a6 Ke8 85. a7) 80... Rb4 {[%emt 0:00:25]} 81. Bc6 {[%emt 0:00:11] And now a5 would win.} Kc8 {[%emt 0:00:49]} 82. Bd7+ {[%emt 0:00:10]} Kb8 {[%emt 0:00:18]} 83. Bb5 {[%emt 0:00:30] White threatens Rb7+ and mate.} Re4 {[%emt 0:00:19]} (83... Rd4 $18 84. Bc6 Rd2) 84. Rb7+ {[%emt 0:00:09]} Ka8 {[%emt 0:00:12]} 85. Bc6 {[%emt 0:00:22] Weighted Error Value: White=0.30/Black=0.33.  Loses game:     	---       	Black=2      Mistake:       	White=3     	Black=8      Inaccurate:     	White=9     	Black=4      OK:         	White=29    	Black=20     Best:        	White=6     	Black=7      Strong:       	White=1     	Black=2} 1-0

[Event "Serbian League 2024"]
[Site "Bajina Basta"]
[Date "2024.10.03"]
[Round "7.6"]
[White "Miljkovic, Miroslav D"]
[Black "Lukovic, Vladimir"]
[Result "1/2-1/2"]
[ECO "D52"]
[WhiteElo "2420"]
[BlackElo "2431"]
[Annotator "TA"]
[PlyCount "41"]
[EventDate "2024.09.26"]
[EventType "team-tourn"]
[EventCountry "SRB"]
[SourceTitle "playchess.com"]
[Source "ChessBase"]
[SourceQuality "1"]
[TimeControl "40/5400+30:1800+30"]

{[%evp 18,41,30,9,28,21,27,27,29,16,24,0,0,0,0,-3,0,0,0,0,0,0,0,-1,-4,0]} 1. d4 {[%emt 0:03:48]} d5 {[%emt 0:00:30]} 2. c4 {[%emt 0:00:39]} c6 {[%emt 0:00:25]} 3. Nf3 {[%emt 0:00:57]} Nf6 {[%emt 0:01:13]} 4. Nc3 {[%emt 0:02:14]} e6 {[%emt 0:01:56]} 5. Bg5 {[%emt 0:02:17]} Nbd7 {[%emt 1:28:56]} 6. e3 {[%emt 0:02:11]} Qa5 {[%emt 0:00:00]} 7. Nd2 {[%emt 0:02:24]} dxc4 {[%emt 0:00:00]} 8. Bxf6 {[%emt 0:00:34]} Nxf6 {[%emt 0:00:00]} 9. Nxc4 {[%emt 0:04:19]} Qc7 {[%emt 0:00:00]} 10. g3 {[%emt 0:11:35]} Bd7 {[%emt 0:00:00]} 11. Bg2 {[%emt 0:03:34]} c5 {[%emt 0:00:00]} 12. d5 {[%emt 0:13:57]} exd5 {[%emt 0:00:00] White has an edge.} 13. Nxd5 {[%emt 0:00:33]} Nxd5 {[%emt 0:00:00]} 14. Qxd5 {[%emt 0:01:58]} Rb8 {[%emt 0:00:00] The position is equal.} 15. O-O-O {[%emt 0:08:06]} Be6 {[%emt 0:00:00]} 16. Nd6+ {[%emt 0:01:52]} Bxd6 {[%emt 0:00:00]} 17. Qxd6 {[%emt 0:00:06]} Qxd6 {[%emt 0:00:00]} 18. Rxd6 {[%emt 0:00:01]} Ke7 {[%emt 0:00:00]} 19. Rhd1 {[%emt 0:00:14]} b6 {[%emt 0:00:00]} 20. Kc2 {[%emt 0:00:22]} Rhd8 {[%emt 0:00:00]} 21. Rxd8 {[%emt 0:01:31] Not much happened in this game.   Weighted Error Value: White=0.02 (flawless) /Black=0.02 (flawless) .  OK:         	White=4     	Black=7      Best:        	---       	Black=1} 1/2-1/2

[Event "Serbian League 2024"]
[Site "Bajina Basta"]
[Date "2024.10.03"]
[Round "7.8"]
[White "Szalai, Kornel"]
[Black "Eren, Ataberk"]
[Result "0-1"]
[ECO "D12"]
[WhiteElo "2388"]
[BlackElo "2386"]
[Annotator "TA"]
[PlyCount "72"]
[EventDate "2024.09.26"]
[EventType "team-tourn"]
[EventCountry "SRB"]
[SourceTitle "playchess.com"]
[Source "ChessBase"]
[SourceQuality "1"]
[TimeControl "40/5400+30:1800+30"]

{[%evp 11,72,22,35,22,22,27,34,25,49,29,29,13,14,3,23,0,4,0,-23,-17,-17,-10,-35,-27,-30,-34,-27,-31,-30,-32,0,0,0,-63,-56,-81,-81,-87,-87,-112,-98,-135,-119,-295,-269,-319,-384,-390,-412,-391,-400,-395,-248,-532,-321,-325,-324,-709,-685,-704,-693,-5701,-5689]} 1. c4 {[%emt 0:00:27]} Nf6 {[%emt 0:00:19]} 2. Nf3 {[%emt 0:00:45]} c6 {[%emt 0:02:01]} 3. e3 {[%emt 0:00:13]} d5 {[%emt 0:06:27]} 4. d4 {[%emt 0:02:54]} Bf5 {[%emt 0:00:10]} 5. Nc3 {[%emt 0:00:18]} e6 {[%emt 0:00:04]} 6. Nh4 {[%emt 0:00:30]} Bg6 {[%emt 0:00:11]} 7. Be2 {[%emt 0:00:29]} Nbd7 {[%emt 0:00:16]} 8. O-O {[%emt 0:01:20]} Bd6 {[%emt 0:03:44]} 9. g3 {[%emt 0:02:24] White is slightly better.} Qe7 {[%emt 0:02:41]} 10. Qb3 {[%emt 0:02:24] Hoping for Nxg6.} Rb8 {[%emt 0:00:19]} 11. Nxg6 {[%emt 0:04:33]} (11. c5 $5 Bc7 $8 12. Qd1 $11) 11... hxg6 {[%emt 0:00:19]} 12. Bd2 {[%emt 0:00:07]} a6 {[%emt 0:01:52]} 13. Qc2 {[%emt 0:06:04]} dxc4 {[%emt 0:03:58]} 14. Rfe1 {[%emt 0:18:26]} b5 {[%emt 0:01:07]} 15. Ne4 {[%emt 0:22:49]} Nxe4 {[%emt 0:12:58]} 16. Qxe4 {[%emt 0:00:04]} c5 {[%emt 0:18:08]} 17. b3 {[%emt 0:00:16]} cxd4 {[%emt 0:01:11]} 18. bxc4 {[%emt 0:07:23]} dxe3 {[%emt 0:02:32]} (18... d3 $5 19. Qxd3 b4 $15) 19. Bxe3 {[%emt 0:00:03]} O-O {[%emt 0:03:27]} 20. Red1 {[%emt 0:00:43]} Rfc8 {[%emt 0:06:45] Dodges Qc6} 21. cxb5 {[%emt 0:11:22]} axb5 {[%emt 0:00:30]} 22. Rab1 {[%emt 0:02:38]} (22. Qd3 $11 Be5 23. Rab1) 22... Nf6 $15 {[%emt 0:01:13]} 23. Qh4 {[%emt 0:00:50]} b4 $36 {[%emt 0:02:49][%mdl 2048] Black is in control.} 24. Bc4 {[%emt 0:01:42]} Bc5 {[%emt 0:03:03] aiming for ...Bxe3.} 25. Bg5 {[%emt 0:02:38]} Qa7 {[%emt 0:07:16]} 26. Rb2 {[%emt 0:01:19] [#]} Rd8 $1 {[%emt 0:04:55]} 27. Rxd8+ {[%emt 0:02:07] Now White is beyond hope.} (27. Rd3 $17 {was worth a try.}) 27... Rxd8 $19 {[%emt 0:00:09]} 28. Bb3 {[%emt 0:00:06]} Rd4 {[%emt 0:01:18]} 29. Qh3 {[%emt 0:01:36]} Re4 {[%emt 0:02:50]} 30. Qf1 {[%emt 0:01:34] Inhibits Re1.} Ng4 {[%emt 0:01:06]} 31. Kg2 {[%emt 0:02:04]} Re5 {[%emt 0:04:25]} 32. Bc1 $2 {[%emt 0:01:47]} (32. f3 {was the only defense.}) 32... Qa8+ {[%emt 0:06:23]} 33. f3 {[%emt 0:02:12] [#]} Be3 $1 {[%emt 0:02:34] White must now prevent ...Rc5. White is weak on the dark squares} 34. Re2 $2 {[%emt 0:02:26]} (34. Qc4 Bxc1 35. Qxc1) 34... Bxc1 {[%emt 0:00:00] Black is clearly winning.} 35. Rxe5 {[%emt 0:00:19]} Nxe5 {[%emt 0:00:00]} 36. Qxc1 {[%emt 0:00:02]} Qxf3+ {[%emt 0:00:00] Weighted Error Value: White=0.65/Black=0.18 (very precise) .  Loses game:     	White=1     	---        Mistake:       	White=3     	---        Inaccurate:     	White=1     	Black=3      OK:         	White=7     	Black=8      Best:        	White=2     	Black=4      Strong:       	---       	Black=2} 0-1

[Event "Serbian League 2024"]
[Site "Bajina Basta"]
[Date "2024.10.03"]
[Round "7.9"]
[White "Ozsakallioglu, Okan"]
[Black "Farkas, Tibor"]
[Result "0-1"]
[ECO "B80"]
[WhiteElo "2349"]
[BlackElo "2209"]
[Annotator "TA"]
[PlyCount "62"]
[EventDate "2024.09.26"]
[EventType "team-tourn"]
[EventCountry "SRB"]
[SourceTitle "playchess.com"]
[Source "ChessBase"]
[SourceQuality "1"]
[TimeControl "40/5400+30:1800+30"]

{[%evp 20,62,0,38,41,36,32,20,88,112,134,96,108,114,117,101,114,94,121,118,117,103,114,113,108,102,103,58,119,98,125,108,206,31,30,0,16,0,0,0,0,0,0,-29984,-29985]} 1. e4 {[%emt 0:00:03]} c5 {[%emt 0:00:51]} 2. Nf3 {[%emt 0:00:03]} d6 {[%emt 0:00:20]} 3. d4 {[%emt 0:00:02]} cxd4 {[%emt 0:00:19]} 4. Nxd4 {[%emt 0:00:03]} Nf6 {[%emt 0:00:26]} 5. Nc3 {[%emt 0:00:03]} a6 {[%emt 0:01:08]} 6. f3 {[%emt 0:00:02]} e6 {[%emt 0:02:01]} 7. Be3 {[%emt 0:00:03]} b5 {[%emt 0:02:39]} 8. Qd2 {[%emt 0:03:14]} Nbd7 {[%emt 0:01:14]} 9. g4 {[%emt 0:00:16]} h6 {[%emt 0:01:16]} 10. a3 {[%emt 0:04:41]} Bb7 {[%emt 0:06:36]} 11. O-O-O {[%emt 0:00:55]} Nb6 {[%emt 0:19:20]} 12. Qe1 {[%emt 0:08:57]} Rc8 {[%emt 0:10:02]} 13. Kb1 {[%emt 0:01:15]} e5 {[%emt 0:04:53]} (13... d5 $11 {remains equal.}) 14. Nb3 {[%emt 0:11:43]} Qc7 {[%emt 0:06:50] Dodges Nc5} 15. Qf2 {[%emt 0:09:36]} Na4 {[%emt 0:10:40]} 16. Nxa4 {[%emt 0:00:05]} bxa4 {[%emt 0:00:09]} 17. Bb6 {[%emt 0:00:02]} Qb8 {[%emt 0:02:55]} 18. Na5 {[%emt 0:03:29] And now Ba7 would win.} Be7 {[%emt 0:02:51]} 19. Bc4 {[%emt 0:03:46]} Nd7 {[%emt 0:01:47][%cal Od6d5]} 20. Ba7 $36 {[%emt 0:04:29][%mdl 2048] White has strong initiative.} Qc7 {[%emt 0:01:35]} 21. Nxb7 {[%emt 0:00:03]} Qxb7 {[%emt 0:01:04]} 22. Bd5 {[%emt 0:00:04] This pair of bishops is nice.} Qc7 {[%emt 0:00:29]} 23. Be3 {[%emt 0:01:49]} Rb8 {[%emt 0:01:43]} (23... Bg5 $14) 24. Rd3 $16 {[%emt 0:01:31]} O-O {[%emt 0:00:46]} 25. h4 {[%emt 0:00:31]} Nb6 {[%emt 0:01:13]} (25... Nf6 $16) 26. Bc1 $2 {[%emt 0:09:36] [#]} (26. Rc3 $18 Qxc3 27. Bxf7+ (27. bxc3 Nxd5+ 28. Ka1 Nxc3 $11) 27... Rxf7 28. bxc3) 26... Nxd5 $14 {[%emt 0:02:15]} 27. Rxd5 {[%emt 0:03:06]} Rb6 {[%emt 0:02:16]} 28. Ka1 {[%emt 0:11:28]} Rfb8 {[%emt 0:01:25]} 29. Qd2 {[%emt 0:00:14]} Qb7 {[%emt 0:00:40][%cal Rb6b2] ( -> ...Rxb2)} 30. c3 {[%emt 0:00:03]} Rb3 {[%emt 0:00:58][%cal Ob3a3] Strongly threatening ...Rxa3+!} 31. Qd3 $2 {[%emt 0:00:49][%mdl 8192] [#]} (31. Qc2 $11) 31... Rxb2 {[%emt 0:01:57] What a bad dream for White.   Weighted Error Value: White=0.48/Black=0.20 (precise) .  Loses game:     	White=1     	---        Missed win:     	White=1     	---        Mistake:       	---       	Black=3      Inaccurate:     	White=2     	---        OK:         	White=11    	Black=9      Best:        	White=1     	Black=1} 0-1

[Event "Serbian League 2024"]
[Site "Bajina Basta"]
[Date "2024.10.03"]
[Round "7.10"]
[White "Juhasz, Bence R"]
[Black "Ljepic, Andrej"]
[Result "0-1"]
[ECO "A31"]
[WhiteElo "2266"]
[BlackElo "2326"]
[Annotator "RC"]
[PlyCount "94"]
[EventDate "2024.09.26"]
[EventType "team-tourn"]
[EventCountry "SRB"]
[SourceTitle "playchess.com"]
[Source "ChessBase"]
[SourceQuality "1"]
[TimeControl "40/5400+30:1800+30"]

1. e4 {[%emt 0:01:04]} c5 {[%emt 0:00:08]} 2. Nf3 {[%emt 0:00:14]} a6 {[%emt 0:00:14]} 3. c4 {[%emt 0:00:24]} e6 {[%emt 0:01:03]} 4. Nc3 {[%emt 0:02:55]} Qc7 {[%emt 0:00:26]} 5. a3 {[%emt 0:07:37]} d6 {[%emt 0:05:35]} 6. d4 {[%emt 0:00:32]} cxd4 {[%emt 0:00:34]} 7. Nxd4 {[%emt 0:00:02]} Nf6 {[%emt 0:00:09]} 8. Be3 {[%emt 0:00:30]} Be7 {[%emt 0:00:51]} 9. Be2 {[%emt 0:00:47]} Nbd7 {[%emt 0:00:41]} 10. Rc1 {[%emt 0:01:14]} b6 {[%emt 0:01:21]} 11. O-O {[%emt 0:00:37]} Bb7 {[%emt 0:02:03]} 12. f3 {[%emt 0:00:34]} O-O {[%emt 0:00:08]} 13. Qd2 {[%emt 0:00:23]} Rac8 {[%emt 0:01:15]} 14. b4 {[%emt 0:05:06]} Qb8 {[%emt 0:07:32]} 15. Nb3 {[%emt 0:05:45]} Bd8 {[%emt 0:04:29]} 16. Rfd1 {[%emt 0:03:49]} Bc7 {[%emt 0:02:05]} 17. Kh1 {[%emt 0:01:25]} h6 {[%emt 0:18:41]} 18. Bf4 {[%emt 0:10:25]} Ne5 {[%emt 0:12:26]} 19. Bxe5 {[%emt 0:01:27]} dxe5 {[%emt 0:00:05]} 20. c5 {[%emt 0:00:08]} Rfd8 {[%emt 0:04:33]} 21. Qa2 {[%emt 0:04:43]} Rxd1+ {[%emt 0:06:13]} 22. Rxd1 {[%emt 0:01:47]} Rd8 {[%emt 0:00:49]} 23. Rc1 {[%emt 0:01:13]} Nh5 {[%emt 0:06:40]} 24. g3 {[%emt 0:09:14]} g5 {[%emt 0:02:23]} 25. cxb6 {[%emt 0:00:44]} Bxb6 {[%emt 0:00:40]} 26. Nc5 {[%emt 0:00:17]} Bxc5 {[%emt 0:05:11]} 27. bxc5 {[%emt 0:00:09]} g4 {[%emt 0:02:20]} 28. Nd1 {[%emt 0:09:25]} Bc6 {[%emt 0:02:37]} 29. Nf2 {[%emt 0:05:00]} gxf3 {[%emt 0:00:25]} 30. Bxf3 {[%emt 0:00:02]} Nf6 {[%emt 0:00:07]} 31. Rb1 {[%emt 0:03:11]} Qc7 {[%emt 0:02:26]} 32. Qb2 {[%emt 0:03:33]} Bb5 {[%emt 0:01:31]} 33. Qc3 {[%emt 0:01:06]} Rd4 {[%emt 0:02:59]} 34. Rc1 {[%emt 0:01:51]} Bc6 {[%emt 0:01:41]} 35. Qe3 {[%emt 0:01:06]} Kg7 {[%emt 0:00:16]} 36. g4 {[%emt 0:01:22]} Nh7 {[%emt 0:02:17]} 37. Bg2 {[%emt 0:09:12]} Qa5 {[%emt 0:01:26]} 38. Qg3 {[%emt 0:01:07]} f6 {[%emt 0:00:47]} 39. Qb3 {[%emt 0:00:42]} Qd2 {[%emt 0:01:42]} 40. Qc2 {[%emt 0:03:21]} Qe3 {[%emt 0:02:26]} 41. Rf1 {[%emt 0:31:07]} Rd2 {[%emt 0:05:26]} 42. Qc1 {[%emt 0:00:00]} Bb5 {[%emt 0:01:33]} 43. Nd1 {[%emt 0:00:00]} Qe2 {[%emt 0:00:32]} 44. Rg1 {[%emt 0:00:00]} Rc2 {[%emt 0:01:21]} 45. Qa1 {[%emt 0:00:00]} Bc6 {[%emt 0:01:54]} 46. Nc3 {[%emt 0:00:00]} Qd2 {[%emt 0:01:21]} 47. Nb1 {[%emt 0:00:00]} Qe3 {[%emt 0:01:31]} 0-1